bitfinex/quotes_SOLUSD_20260109
["timestamp","ask_amount","ask_price","bid_price","bid_amount"]
[1767981698402,4.39886921,138.33,138.28,0.69507789]
[1767981698590,24.10457977,138.34,138.29,5.0939471]
[1767981698796,0.7011828,138.33,138.29,4.39886921]
[1767981698998,0.7011828,138.33,138.3,4.39886921]
[1767981699380,0.7011828,138.33,138.29,5.0939471]
[1767981699672,0.7011828,138.33,138.3,4.39886921]
[1767981699883,0.7011828,138.35,138.31,11.62900441]
[1767981700084,16.26132937,138.37,138.32,0.69507789]
[1767981700085,11.60443452,138.37,138.32,0.69507789]
[1767981700390,0.7011828,138.37,138.33,4.39886921]
[1767981700597,5.10005201,138.38,138.34,0.69507789]
[1767981700800,19.70350283,138.39,138.34,0.69507789]
[1767981701095,19.70350283,138.39,138.31,25.3054732]
[1767981701096,20.40424767,138.4,138.35,5.0939471]
[1767981701583,20.40424767,138.4,138.36,4.39886921]
[1767981701791,18.30005201,138.42,138.37,4.39886921]
[1767981702094,24.80230732,138.42,138.37,5.0939471]
[1767981702472,20.40343811,138.42,138.38,4.39886921]
[1767981702798,20.40343811,138.42,138.38,11.64666618]
[1767981703198,7.20343811,138.42,138.38,12.34174407]
[1767981703419,6.50225531,138.42,138.39,11.64666618]
[1767981703587,6.50225531,138.42,138.38,12.34174407]
[1767981703896,0.7011828,138.39,138.33,7.22874892]
[1767981704077,0.7011828,138.39,138.35,11.64666618]
[1767981704272,0.7011828,138.39,138.33,7.22874892]
[1767981704273,12.34784898,138.39,138.34,11.64666618]
[1767981704473,0.7011828,138.37,138.33,11.64666618]
[1767981704800,12.34784898,138.38,138.33,18.87570008]
[1767981705176,0.7011828,138.38,138.33,18.87570008]
[1767981705377,12.34784898,138.37,138.32,11.64666618]
[1767981705606,12.34784898,138.37,138.28,18.07871443]
[1767981705607,12.34784898,138.34,138.3,7.23061792]
[1767981705925,0.7011828,138.34,138.3,0.69507789]
[1767981706199,12.34784898,138.34,138.3,0.69507789]
[1767981706577,12.34784898,138.34,138.28,7.92672974]
[1767981706777,12.34784898,138.33,138.28,7.92672974]
[1767981706978,12.34784898,138.33,138.28,12.34174407]
[1767981707378,0.7011828,138.33,138.28,12.34174407]
[1767981707577,18.85441786,138.33,138.28,12.34174407]
[1767981710604,6.50572268,138.34,138.3,12.35418641]
[1767981711505,103.05,138.38,138.32,11.64666618]
[1767981711712,25.50610963,138.37,138.32,12.35418641]
[1767981712208,0.65944345,138.36,138.32,12.35418641]
[1767981712404,7.16433718,138.36,138.32,12.35418641]
[1767981714991,7.16433718,138.36,138.32,11.64666618]
[1767981715610,7.16433718,138.36,138.31,18.87661606]
[1767981715611,0.65944345,138.35,138.31,18.87661606]
[1767981715815,0.65944345,138.34,138.3,11.64666618]
[1767981716113,0.65944345,138.34,138.29,7.9383944]
[1767981716114,0.65944345,138.33,138.29,7.9383944]
[1767981716292,0.65944345,138.31,138.27,7.23189261]
[1767981716495,0.65944345,138.31,138.27,18.87855879]
[1767981716999,0.65944345,138.31,138.27,19.58607902]
[1767981718204,0.65944345,138.31,138.28,11.64666618]
[1767981719312,0.65944345,138.31,138.27,11.64666618]
[1767981719519,0.65944345,138.3,138.26,18.87937888]
[1767981720911,0.65944345,138.3,138.27,11.64666618]
[1767981721513,13.85944345,138.32,138.28,11.64666618]
[1767981721721,13.85944345,138.32,138.28,12.35418641]
[1767981722018,0.65944345,138.31,138.28,11.64666618]
[1767981722199,0.65944345,138.3,138.27,11.64666618]
[1767981722400,0.65944345,138.3,138.28,11.64666618]
[1767981722734,18.15304741,138.33,138.29,19.5848855]
[1767981722735,13.2,138.33,138.29,19.5848855]
[1767981723017,0.65944345,138.34,138.31,11.64666618]
[1767981723322,0.65944345,138.34,138.3,12.34854508]
[1767981724319,0.65944345,138.34,138.3,0.7018789]
[1767981724532,12.30610963,138.34,138.3,0.7018789]
[1767981725019,18.81183242,138.34,138.3,0.7018789]
[1767981726418,12.30610963,138.34,138.3,7.93250467]
[1767981727124,0.65944345,138.34,138.3,19.57917085]
[1767981729123,134.40212096,138.35,138.31,0.7018789]
[1767981729301,135.05508431,138.35,138.31,0.7018789]
[1767981729501,12.29962953,138.34,138.3,7.23062577]
[1767981729694,12.29962953,138.34,138.26,13.2]
[1767981729695,0.65296335,138.31,138.27,19.58056047]
[1767981729898,0.65296335,138.29,138.24,18.78560393]
[1767981730119,0.65296335,138.29,138.25,19.58150975]
[1767981730308,0.65296335,138.29,138.27,11.64666618]
[1767981730510,0.65296335,138.29,138.26,11.64666618]
[1767981730708,0.65296335,138.33,138.28,12.34854508]
[1767981730900,0.65296335,138.33,138.31,11.64666618]
[1767981731218,0.65296335,138.33,138.28,0.7018789]
[1767981731423,0.65296335,138.33,138.31,11.64666618]
[1767981731910,0.65296335,138.33,138.3,11.64666618]
[1767981732224,0.65296335,138.32,138.3,11.64666618]
[1767981732401,0.65296335,138.32,138.28,11.64666618]
[1767981732600,0.65296335,138.31,138.28,11.64666618]
[1767981733118,0.65296335,138.31,138.27,11.64666618]
[1767981733324,0.65296335,138.31,138.27,18.87883701]
[1767981734225,13.2,138.32,138.29,11.64666618]
[1767981734424,0.65296335,138.33,138.3,11.64666618]
[1767981734724,0.65296335,138.32,138.28,11.64666618]
[1767981735229,0.65296335,138.32,138.28,0.7018789]
[1767981735429,0.65296335,138.33,138.31,11.64666618]
[1767981735726,0.65296335,138.33,138.32,11.58666619]
[1767981737026,6.43623523,138.33,138.32,11.58666619]
[1767981737602,6.43623523,138.33,138.31,11.64666618]
[1767981738520,0.65296335,138.32,138.3,11.64666618]
[1767981739227,6.43623523,138.33,138.3,11.64666618]
[1767981739426,6.43623523,138.33,138.31,11.64666618]
[1767981742719,6.43623523,138.33,138.3,11.64666618]
[1767981742720,0.65296335,138.32,138.3,11.64666618]
[1767981746233,0.65296335,138.32,138.3,10.73214976]
[1767981746531,0.55296335,138.31,138.28,4.39679265]
[1767981746716,19.53735924,138.31,138.28,4.39679265]
[1767981747620,23.93415189,138.31,138.27,0.7018789]
[1767981748740,19.53735924,138.31,138.27,0.7018789]
[1767981750613,23.93415189,138.31,138.27,0.7018789]
[1767981751137,19.53735924,138.31,138.27,0.7018789]
[1767981751430,4.39679265,138.3,138.27,0.7018789]
[1767981752013,4.39679265,138.29,138.27,0.7018789]
[1767981752212,4.39679265,138.29,138.25,0.7018789]
[1767981752834,4.39679265,138.29,138.26,0.69291282]
[1767981753324,4.39679265,138.29,138.25,7.23299994]
[1767981753325,4.39679265,138.27,138.25,0.69291282]
[1767981755725,9.45943584,138.27,138.25,0.69291282]
[1767981755926,9.45943584,138.27,138.23,0.69291282]
[1767981755927,4.39679265,138.26,138.23,0.69291282]
[1767981756231,4.39679265,138.25,138.22,0.69291282]
[1767981756434,4.39679265,138.26,138.23,0.69291282]
[1767981756740,2.81603158,138.26,138.23,0.69291282]
[1767981757231,2.81603158,138.25,138.23,0.69291282]
[1767981758238,2.81603158,138.24,138.21,0.1]
[1767981760248,8.54758064,138.24,138.21,0.79291282]
[1767981760428,2.81603158,138.22,138.21,0.1]
[1767981762947,2.81603158,138.2,138.17,0.69291282]
[1767981763622,2.81603158,138.19,138.17,0.69291282]
[1767981764017,3.48383881,138.19,138.16,0.1]
[1767981764427,2.81603158,138.19,138.16,8.03088612]
[1767981764846,5.73294047,138.2,138.16,8.03088612]
[1767981765045,2.81603158,138.19,138.16,8.03088612]
[1767981765452,0.66780723,138.2,138.16,8.03088612]
[1767981765744,2.81603158,138.19,138.16,0.79291282]
[1767981767354,25.86138539,138.22,138.18,0.69291282]
[1767981767355,5.73234789,138.22,138.18,0.69291282]
[1767981767526,2.81603158,138.21,138.18,0.69291282]
[1767981769253,18.93234789,138.22,138.18,0.69291282]
[1767981769254,13.86780723,138.22,138.19,0.69887905]
[1767981769431,21.08045492,138.22,138.19,0.69887905]
[1767981769637,2.81603158,138.21,138.19,0.69887905]
[1767981770974,2.81603158,138.21,138.18,0.69887905]
[1767981774057,2.81603158,138.23,138.19,0.69887905]
[1767981774247,16.03603158,138.23,138.19,0.69887905]
[1767981774657,0.28432314,138.25,138.2,0.69887905]
[1767981774658,0.65509999,138.25,138.2,0.69887905]
[1767981774865,5.06302773,138.26,138.21,0.69887905]
[1767981774866,21.7541593,138.26,138.21,0.69887905]
[1767981775040,3.47113157,138.26,138.21,0.69887905]
[1767981775748,2.81603158,138.26,138.21,0.69887905]
[1767981776063,0.65509999,138.27,138.24,0.69887905]
[1767981776563,8.53342979,138.28,138.24,0.69887905]
[1767981777747,5.0619523,138.29,138.25,0.69887905]
[1767981777950,8.53308387,138.29,138.25,0.69887905]
[1767981778144,0.65509999,138.28,138.25,0.69887905]
[1767981778550,8.53308387,138.29,138.25,0.69887905]
[1767981779346,0.65509999,138.29,138.25,7.93214404]
[1767981779850,8.53296865,138.29,138.25,0.69887905]
[1767981782556,5.71670384,138.3,138.26,0.69887905]
[1767981782762,8.53273542,138.3,138.26,0.69887905]
[1767981784362,5.71670384,138.3,138.26,0.69887905]
[1767981784553,0.65509999,138.3,138.27,0.72387269]
[1767981784955,3.47113157,138.3,138.27,0.72387269]
[1767981785265,0.65509999,138.3,138.27,0.72387269]
[1767981785656,124.84431076,138.31,138.27,0.72387269]
[1767981786058,116.25,138.31,138.28,0.72387269]
[1767981786367,103.05,138.31,138.29,0.72387269]
[1767981786572,21.79356704,138.33,138.29,0.72387269]
[1767981787451,2.81603158,138.32,138.29,0.72387269]
[1767981787861,16.73307373,138.33,138.29,0.72387269]
[1767981788064,5.77729534,138.34,138.3,0.72387269]
[1767981788370,3.43857725,138.35,138.3,0.72387269]
[1767981788568,3.43857725,138.35,138.31,0.72387269]
[1767981789071,3.43857725,138.35,138.3,7.23054961]
[1767981789072,5.77609281,138.37,138.32,0.72387269]
[1767981789271,8.59212439,138.37,138.32,0.72387269]
[1767981789659,2.81603158,138.35,138.32,0.72387269]
[1767981789851,3.53212877,138.35,138.32,0.72387269]
[1767981790053,3.53212877,138.35,138.31,0.72387269]
[1767981790454,5.77594081,138.35,138.31,0.72387269]
[1767981790657,8.59197239,138.35,138.31,0.72387269]
[1767981791674,8.59197239,138.35,138.24,0.72387269]
[1767981791675,0.62439808,138.3,138.24,0.72387269]
[1767981791849,0.28432314,138.31,138.24,0.72387269]
[1767981791850,2.81603158,138.26,138.24,0.72387269]
[1767981792056,2.81603158,138.25,138.22,0.72387269]
[1767981792249,2.81603158,138.27,138.23,0.72387269]
[1767981792472,2.81603158,138.26,138.23,0.72387269]
[1767981792661,2.81603158,138.25,138.23,0.72387269]
[1767981792971,2.81603158,138.25,138.21,0.72387269]
[1767981793373,5.77902211,138.26,138.21,0.72387269]
[1767981793571,2.81603158,138.25,138.21,0.72387269]
[1767981793750,2.81603158,138.25,138.22,0.72387269]
[1767981794373,2.81603158,138.24,138.22,0.72387269]
[1767981796083,7.8796936,138.24,138.2,0.72387269]
[1767981797082,2.81603158,138.23,138.2,0.72387269]
[1767981797456,5.77975921,138.24,138.2,0.72387269]
[1767981797658,2.81603158,138.23,138.2,0.72387269]
[1767981798476,2.81603158,138.22,138.2,0.72387269]
[1767981799766,5.68762346,138.23,138.19,0.72387269]
[1767981799973,2.81603158,138.22,138.19,0.72387269]
[1767981801179,7.88017385,138.23,138.19,0.72387269]
[1767981801678,5.06414227,138.23,138.19,0.72387269]
[1767981803881,0.62254567,138.25,138.2,0.72387269]
[1767981804067,2.81603158,138.24,138.2,0.72387269]
[1767981805770,5.68597893,138.25,138.21,0.72387269]
[1767981805771,7.87946484,138.25,138.21,0.72387269]
[1767981805978,3.53307373,138.27,138.23,0.72387269]
[1767981806662,0.71704215,138.27,138.23,0.72387269]
[1767981806863,5.77966675,138.27,138.23,0.72387269]
[1767981807182,5.0626246,138.27,138.23,0.72387269]
[1767981808898,8.59543138,138.28,138.24,0.72387269]
[1767981809074,3.53307373,138.28,138.24,0.72387269]
[1767981810395,18.97900955,138.29,138.24,0.72387269]
[1767981810690,21.79504113,138.29,138.24,0.72387269]
[1767981811978,8.50014738,138.3,138.25,0.72387269]
[1767981812164,3.43857725,138.3,138.26,0.72387269]
[1767981814071,0.62254567,138.3,138.26,0.72387269]
[1767981814380,3.43857725,138.3,138.26,7.95660667]
[1767981814587,0.62254567,138.3,138.27,0.6539617]
[1767981814798,5.75472428,138.32,138.27,0.6539617]
[1767981814975,5.75472428,138.32,138.28,0.6539617]
[1767981814976,8.57075586,138.32,138.28,0.6539617]
[1767981815488,3.50986314,138.32,138.28,0.6539617]
[1767981815677,21.07654114,138.33,138.28,0.6539617]
[1767981816013,21.7220653,138.33,138.28,7.88555759]
[1767981816178,21.7220653,138.33,138.29,0.6539617]
[1767981816483,0.69383156,138.35,138.3,0.6539617]
[1767981816687,3.50986314,138.35,138.31,0.6539617]
[1767981817275,18.25950205,138.36,138.31,0.6539617]
[1767981817276,2.81603158,138.36,138.31,0.6539617]
[1767981817475,2.81603158,138.36,138.32,0.6539617]
[1767981818075,7.87462268,138.38,138.34,0.6539617]
[1767981818393,8.52014684,138.38,138.34,0.6539617]
[1767981818573,0.69334848,138.37,138.34,0.6539617]
[1767981818973,107.44282044,138.39,138.35,0.6539617]
[1767981819181,5.0383446,138.39,138.35,0.6539617]
[1767981820289,10.09657362,138.39,138.35,0.6539617]
[1767981820486,5.70375318,138.39,138.35,0.6539617]
[1767981820682,5.0383446,138.39,138.35,7.88196986]
[1767981821095,0.64552416,138.39,138.35,7.88196986]
[1767981821997,4.59282044,138.4,138.36,0.6539617]
[1767981822200,5.2383446,138.4,138.36,0.6539617]
[1767981822899,5.2383446,138.4,138.36,0.59396172]
[1767981823516,5.2383446,138.4,138.36,7.82144456]
[1767981824193,5.2383446,138.4,138.36,0.59396172]
[1767981824998,10.29617788,138.4,138.36,0.59396172]
[1767981825694,10.29617788,138.4,138.36,0.53396173]
[1767981826071,5.2383446,138.4,138.36,7.76147285]
[1767981827278,5.2383446,138.4,138.36,7.70147291]
[1767981827996,0.2,138.4,138.37,4.39282044]
[1767981828902,5.25635085,138.44,138.38,4.39282044]
[1767981829097,10.30640077,138.44,138.39,0.66470205]
[1767981829291,4.39282044,138.43,138.39,0.63146858]
[1767981829498,4.39282044,138.43,138.39,0.59823512]
[1767981829697,4.39282044,138.43,138.39,0.53823514]
[1767981830006,9.44957808,138.43,138.39,0.53823514]
[1767981830179,4.39282044,138.43,138.39,7.22576254]
[1767981830703,9.64920279,138.44,138.39,11.61858298]
[1767981831799,9.64920279,138.44,138.4,0.66470205]
[1767981831995,0.2,138.44,138.41,0.66470205]
[1767981832204,0.2,138.44,138.41,0.63723334]
[1767981832380,4.59282044,138.44,138.41,0.60268091]
[1767981833393,0.2,138.46,138.4,25.28885711]
[1767981833597,0.2,138.46,138.42,4.39282044]
[1767981833991,0.2,138.46,138.42,11.61677932]
[1767981834389,0.2,138.46,138.42,12.28148137]
[1767981834589,0.85722948,138.46,138.42,7.88866093]
[1767981834909,0.85722948,138.46,138.42,7.82866095]
[1767981836385,0.85722948,138.46,138.42,12.22148139]
[1767981836590,0.2,138.46,138.43,0.66470205]
[1767981837603,0.2,138.46,138.43,0.66470205]
[1767981837985,0.2,138.46,138.44,0.66470205]
[1767981838916,0.85722948,138.46,138.42,12.28190456]
[1767981839214,0.85722948,138.46,138.43,7.22386241]
[1767981839601,5.25004992,138.46,138.42,7.88885037]
[1767981840312,0.65722948,138.45,138.42,0.66470205]
[1767981840485,5.05004992,138.43,138.39,0.66470205]
[1767981840811,0.65722948,138.41,138.38,7.22623677]
[1767981841202,5.05004992,138.42,138.38,7.89093882]
[1767981841791,4.39282044,138.42,138.39,0.66470205]
[1767981842402,0.65722948,138.41,138.37,0.66470205]
[1767981842712,0.65722948,138.41,138.34,7.22832043]
[1767981842713,0.68472835,138.37,138.34,7.22832043]
[1767981842917,4.39282044,138.37,138.34,0.714892]
[1767981843529,5.07754879,138.37,138.32,25.53686298]
[1767981843706,0.68472835,138.37,138.33,7.22894552]
[1767981843897,5.07754879,138.38,138.34,0.714892]
[1767981844092,4.39282044,138.37,138.34,0.714892]
[1767981845019,5.74328563,138.38,138.34,0.714892]
[1767981845205,4.39282044,138.37,138.34,0.714892]
[1767981845619,5.07754879,138.37,138.33,7.22894552]
[1767981846224,5.07754879,138.36,138.32,13.914892]
[1767981846598,5.07754879,138.37,138.33,0.714892]
[1767981846923,0.68472835,138.37,138.33,0.714892]
[1767981847109,5.07754879,138.37,138.33,0.714892]
[1767981847926,0.68472835,138.37,138.33,7.94398176]
[1767981848100,0.68472835,138.41,138.36,0.714892]
[1767981848299,0.68472835,138.4,138.36,5.10771244]
[1767981848802,5.0568465,138.43,138.37,5.10771244]
[1767981848803,0.68472835,138.41,138.37,5.10771244]
[1767981849493,0.68472835,138.41,138.37,12.33453144]
[1767981850204,0.68472835,138.39,138.35,13.914892]
[1767981850406,5.07754879,138.39,138.35,0.714892]
[1767981851312,0.68472835,138.39,138.35,5.10771244]
[1767981851512,0.68472835,138.39,138.36,7.22715746]
[1767981851709,0.68472835,138.4,138.36,7.94204946]
[1767981851926,5.07754879,138.42,138.38,0.714892]
[1767981852723,5.07754879,138.41,138.36,30.40367591]
[1767981854424,5.07754879,138.42,138.38,0.714892]
[1767981854631,4.39282044,138.41,138.38,0.714892]
[1767981855735,5.07754879,138.41,138.36,5.10771244]
[1767981856042,5.07754879,138.38,138.34,0.714892]
[1767981856408,5.07754879,138.38,138.34,7.94306634]
[1767981856926,5.07754879,138.38,138.32,0.714892]
[1767981856927,0.68472835,138.37,138.32,0.714892]
[1767981857103,4.39282044,138.36,138.32,7.94440744]
[1767981857423,4.36282045,138.36,138.32,7.94440744]
[1767981857625,4.36282045,138.36,138.33,7.22890669]
[1767981857819,4.36282045,138.36,138.33,7.94379869]
[1767981858726,4.39282044,138.36,138.33,7.94379869]
[1767981860504,0.68472835,138.35,138.31,21.14461577]
[1767981860712,5.07754879,138.35,138.31,7.94461577]
[1767981860909,0.68472835,138.35,138.31,7.94461577]
[1767981861124,5.07754879,138.35,138.31,7.94461577]
[1767981861525,0.68472835,138.33,138.28,0.714892]
[1767981861712,0.68472835,138.33,138.29,4.39282044]
[1767981862033,0.68472835,138.32,138.27,18.30771244]
[1767981862412,0.68472835,138.32,138.28,12.3393516]
[1767981866841,0.68472835,138.32,138.29,0.714892]
[1767981871449,0.68472835,138.31,138.26,0.714892]
[1767981871749,0.68472835,138.3,138.25,5.20771244]
[1767981872322,0.68472835,138.3,138.26,7.23254275]
[1767981873249,0.68472835,138.3,138.26,11.62536319]
[1767981876326,0.69391836,138.28,138.25,7.33320931]
[1767981876625,5.0867388,138.29,138.26,0.6557106]
[1767981876846,0.69391836,138.29,138.26,0.6557106]
[1767981877344,0.69391836,138.29,138.26,7.88837318]
[1767981878245,0.69391836,138.31,138.27,0.6557106]
[1767981878454,5.0867388,138.31,138.27,0.6557106]
[1767981878641,5.0867388,138.31,138.27,7.88780056]
[1767981878840,0.69391836,138.32,138.28,5.04853104]
[1767981879340,5.0867388,138.32,138.28,0.6557106]
[1767981879869,5.0867388,138.31,138.27,7.88780056]
[1767981880759,3.50818889,138.31,138.27,7.88780056]
[1767981881655,3.50818889,138.3,138.26,7.88822177]
[1767981882043,0.69391836,138.28,138.25,0.1]
[1767981882632,0.69391836,138.27,138.25,0.1]
[1767981882840,0.69391836,138.25,138.22,7.89039855]
[1767981883053,0.66391837,138.25,138.22,7.89039855]
[1767981883232,0.28432314,138.29,138.23,7.23430143]
[1767981883432,2.81427053,138.27,138.23,7.23430143]
[1767981885036,3.50818889,138.27,138.23,7.23430143]
[1767981885363,10.74045693,138.27,138.23,7.23430143]
[1767981885552,2.81427053,138.26,138.22,7.89031755]
[1767981886135,3.50818889,138.27,138.23,0.6557106]
[1767981886345,16.70818889,138.29,138.24,0.6557106]
[1767981886537,0.69391836,138.29,138.26,0.6557106]
[1767981889559,0.69391836,138.29,138.26,7.88842969]
[1767981890454,10.73939419,138.29,138.25,7.2330257]
[1767981890669,3.51211626,138.28,138.24,7.94635352]
[1767981890856,3.51211626,138.27,138.23,7.2341317]
[1767981891184,3.51211626,138.27,138.23,7.9469061]
[1767981891488,3.51211626,138.27,138.24,0.7127744]
[1767981892447,2.81427053,138.27,138.24,0.7127744]
[1767981892648,2.81427053,138.27,138.24,7.94654036]
[1767981893602,10.74389416,138.28,138.24,7.94654036]
[1767981893867,3.51211626,138.28,138.24,7.94654036]
[1767981895181,10.74390097,138.28,138.24,7.94654036]
[1767981895364,0.69784573,138.27,138.24,0.7127744]
[1767981895972,2.9564321,138.32,138.24,7.9465682]
[1767981895973,0.69784573,138.29,138.24,7.9465682]
[1767981896166,3.51211626,138.28,138.24,7.9465682]
[1767981900379,3.51211626,138.25,138.21,0.7127744]
[1767981900584,3.51211626,138.24,138.21,0.7127744]
[1767981900780,0.69784573,138.23,138.2,0.7127744]
[1767981901285,3.51211626,138.21,138.18,0.1]
[1767981901485,3.48211627,138.21,138.18,0.1]
[1767981901783,0.66784574,138.21,138.18,0.1]
[1767981901967,2.81427053,138.23,138.19,0.7127744]
[1767981902487,10.04870929,138.23,138.19,0.7127744]
[1767981903165,7.23389293,138.24,138.19,0.7127744]
[1767981903359,10.71829985,138.24,138.2,0.67250106]
[1767981903673,7.90402932,138.24,138.2,3.48677159]
[1767981903874,3.48440692,138.28,138.23,0.67250106]
[1767981904062,0.67013639,138.27,138.23,0.67250106]
[1767981904262,3.48440692,138.27,138.23,0.67250106]
[1767981904457,0.67013639,138.26,138.22,3.48677159]
[1767981904881,0.67013639,138.26,138.22,10.72144505]
[1767981906269,0.67013639,138.26,138.22,7.90717452]
[1767981906896,0.67013639,138.26,138.22,10.72144505]
[1767981907496,0.67013639,138.26,138.22,7.90717452]
[1767981908196,0.67013639,138.26,138.22,10.72144505]
[1767981910583,0.67013639,138.25,138.22,7.23467346]
[1767981910799,0.67013639,138.25,138.21,10.72191969]
[1767981911399,0.67013639,138.24,138.2,10.7224797]
[1767981911584,0.67013639,138.23,138.2,7.90820917]
[1767981911981,0.67013639,138.22,138.18,23.3509677]
[1767981912296,3.45440691,138.22,138.18,20.53669717]
[1767981912671,0.64013638,138.22,138.18,21.20919823]
[1767981912870,0.64013638,138.22,138.19,0.67250106]
[1767981914784,0.64013638,138.22,138.19,7.90865333]
[1767981916270,0.67013639,138.25,138.2,0.67250106]
[1767981916477,0.67013639,138.27,138.23,3.48677159]
[1767981916695,0.67013639,138.27,138.24,2.81427053]
[1767981916871,0.67013639,138.27,138.24,10.72056694]
[1767981917076,0.67013639,138.29,138.25,3.48677159]
[1767981917689,0.67013639,138.29,138.24,7.23379535]
[1767981917690,0.67013639,138.31,138.27,3.48677159]
[1767981917992,0.67013639,138.33,138.29,2.81427053]
[1767981918382,0.67013639,138.33,138.28,0.67250106]
[1767981918606,0.67013639,138.33,138.29,2.81427053]
[1767981919090,3.48440692,138.31,138.26,10.71920022]
[1767981919973,0.67013639,138.3,138.26,7.90492969]
[1767981921074,10.71437972,138.32,138.28,0.67250106]
[1767981921274,3.48440692,138.32,138.28,0.67250106]
[1767981921498,0.67013639,138.31,138.27,3.48677159]
[1767981923792,0.67013639,138.31,138.27,10.71855433]
[1767981923992,0.67013639,138.31,138.28,3.48677159]
[1767981924306,0.67013639,138.33,138.28,3.48677159]
[1767981924999,3.48440692,138.33,138.28,3.48677159]
[1767981925500,0.67013639,138.32,138.28,3.48677159]
[1767981925878,0.67013639,138.32,138.29,7.23118085]
[1767981926079,0.67013639,138.32,138.28,10.71828051]
[1767981928909,0.67013639,138.32,138.29,2.81427053]
[1767981929093,3.48440692,138.34,138.29,3.48677159]
[1767981929290,0.67013639,138.33,138.29,3.48677159]
[1767981929595,0.67013639,138.34,138.31,0.67250106]
[1767981929799,21.09853756,138.35,138.31,0.67250106]
[1767981930001,23.91280809,138.35,138.31,0.67250106]
[1767981930299,0.67013639,138.35,138.31,10.71678507]
[1767981930506,0.67013639,138.37,138.33,3.48677159]
[1767981930803,0.67013639,138.37,138.33,3.42677165]
[1767981931510,0.67013639,138.37,138.33,10.65556332]
[1767981932003,0.67013639,138.37,138.33,7.84129279]
[1767981932209,0.67013639,138.37,138.33,10.65556332]
[1767981934794,0.67013639,138.37,138.33,7.84129279]
[1767981935111,0.67013639,138.37,138.33,7.22879167]
[1767981935290,0.66208133,138.36,138.31,10.73279059]
[1767981935492,0.66208133,138.36,138.32,7.22954675]
[1767981935493,0.66208133,138.35,138.32,7.22954675]
[1767981935696,0.66208133,138.36,138.33,7.22905443]
[1767981935896,0.66208133,138.36,138.33,7.91755283]
[1767981936106,0.66208133,138.37,138.33,7.91755283]
[1767981936488,0.66208133,138.37,138.34,0.6884984]
[1767981936913,3.47635186,138.4,138.36,0.6884984]
[1767981937215,0.66208133,138.4,138.36,0.6884984]
[1767981937412,0.66208133,138.39,138.36,0.6884984]
[1767981937804,0.66208133,138.38,138.34,10.04275366]
[1767981938001,0.66208133,138.38,138.33,13.92290898]
[1767981938002,3.47635186,138.38,138.33,7.95175119]
[1767981938206,0.66208133,138.35,138.31,10.04427336]
[1767981939708,0.66208133,138.35,138.32,2.81427053]
[1767981939903,0.66208133,138.35,138.32,0.6884984]
[1767981940109,0.66208133,138.35,138.32,3.50276893]
[1767981940720,0.66208133,138.36,138.32,5.08162733]
[1767981940920,0.66208133,138.36,138.32,12.31113119]
[1767981941521,0.66208133,138.36,138.33,0.6884984]
[1767981941926,0.66208133,138.36,138.32,12.31113119]
[1767981942798,0.66208133,138.37,138.34,5.08162733]
[1767981943123,0.66208133,138.37,138.34,12.309907]
[1767981943424,0.66208133,138.38,138.34,12.309907]
[1767981945126,0.66208133,138.38,138.34,5.08162733]
[1767981947024,0.66208133,138.38,138.34,12.31005578]
[1767981947424,0.66208133,138.38,138.34,7.91692685]
[1767981947812,0.66208133,138.38,138.34,12.31005578]
[1767981951404,0.68656153,138.39,138.35,5.11545588]
[1767981952328,0.68656153,138.39,138.34,12.34388433]
[1767981952622,0.68656153,138.38,138.34,12.34388433]
[1767981954625,0.68656153,138.4,138.37,0.72232695]
[1767981954935,0.68656153,138.4,138.37,5.0554559]
[1767981956315,0.68656153,138.4,138.37,4.39312893]
[1767981956732,0.68656153,138.4,138.37,11.62000531]
[1767981956950,0.88656153,138.41,138.37,12.34233226]
[1767981959334,0.88656153,138.41,138.38,0.72232695]
[1767981959542,0.2,138.41,138.39,5.11545588]
[1767981960333,0.2,138.41,138.39,0.72232695]
[1767981960740,0.2,138.41,138.38,5.11545588]
[1767981960741,0.88656153,138.41,138.38,5.11545588]
[1767981960941,0.2,138.41,138.38,7.94871316]
[1767981961123,0.2,138.41,138.38,12.34184209]
[1767981961325,0.88656153,138.41,138.38,7.94871316]
[1767981961944,0.2,138.41,138.39,0.72232695]
[1767981962449,0.2,138.41,138.39,5.11545588]
[1767981963145,0.2,138.41,138.39,12.3414078]
[1767981963653,0.2,138.41,138.39,7.94827887]
[1767981964837,0.2,138.41,138.39,0.72232695]
[1767981965147,0.90450753,138.41,138.38,0.65830842]
[1767981965525,0.90450753,138.41,138.38,7.82475181]
[1767981965928,0.90450753,138.41,138.38,12.21788074]
[1767981967347,44.71488777,138.44,138.4,4.39312893]
[1767981967557,44.71488777,138.44,138.41,4.39312893]
[1767981968631,0.70450753,138.44,138.41,4.39312893]
[1767981968827,0.70450753,138.44,138.4,5.05143735]
[1767981969153,0.70450753,138.44,138.4,0.65830842]
[1767981969446,0.70450753,138.44,138.4,11.61833647]
[1767981969650,5.09763646,138.43,138.39,7.88400628]
[1767981969824,0.70450753,138.43,138.39,7.88400628]
[1767981970654,0.70450753,138.43,138.39,12.27713521]
[1767981970965,0.70450753,138.43,138.4,7.22535274]